fUSD/lending_fUSD_20250511
["ID","MTS","AMOUNT","RATE_DAILY","PERIOD"]
[360689775,1746929472848,-400.0,0.00019998,2]
[360689776,1746929472857,-432.91,0.00019998,2]
[360689777,1746929472867,-432.91,0.00019998,2]
[360689778,1746929472876,-400.0,0.00019998,2]
[360689779,1746929472884,-432.91,0.00019998,2]
[360689780,1746929472894,-400.0,0.00019998,2]
[360689781,1746929472903,-400.0,0.00019998,2]
[360689782,1746929472913,-486.0,0.00019998,2]
[360689783,1746929472922,-486.0,0.00019998,2]
[360689784,1746929472931,-486.0,0.00019998,2]
[360689785,1746929472940,-400.0,0.00019998,2]
[360689786,1746929472951,-400.0,0.00019998,2]
[360689787,1746929472960,-400.0,0.00019998,2]
[360689788,1746929472969,-400.0,0.00019998,2]
[360689789,1746929472978,-400.0,0.00019998,2]
[360689790,1746929472987,-400.0,0.00019998,2]
[360689791,1746929472996,-400.0,0.00019998,2]
[360689792,1746929473005,-400.0,0.00019998,2]
[360689793,1746929473014,-400.0,0.00019998,2]
[360689794,1746929473023,-400.0,0.00019998,2]
[360689795,1746929473032,-400.0,0.00019998,2]
[360689796,1746929473042,-400.0,0.00019998,2]
[360689797,1746929473053,-400.0,0.00019998,2]
[360689798,1746929473063,-400.0,0.00019998,2]
[360689799,1746929473072,-400.0,0.00019998,2]
[360689800,1746929473081,-586.11,0.00019998,2]
[360689801,1746929473090,-586.11,0.00019998,2]
[360689802,1746929473099,-586.11,0.00019998,2]
[360689803,1746929473108,-411.24,0.00019998,2]
[360689804,1746929473118,-411.24,0.00019998,2]
[360689805,1746929473127,-411.24,0.00019998,2]
[360689806,1746929473137,-151.0,0.00019998,2]
[360689807,1746929473147,-151.0,0.00019998,2]
[360689808,1746929473156,-151.0,0.00019998,2]
[360689809,1746929473165,-400.0,0.00019998,2]
[360689810,1746929473175,-400.0,0.00019998,2]
[360689811,1746929473184,-400.0,0.00019998,2]
[360689812,1746929473195,-400.0,0.00019998,2]
[360689813,1746929473204,-262.748854,0.00019998,2]
[360689814,1746929473214,-262.748854,0.00019998,2]
[360689815,1746929473223,-150.0,0.00019998,2]
[360689816,1746929473233,-1426.22877419,0.00019998,2]
[360689817,1746929473242,-151.0,0.00019998,2]
[360689818,1746929473252,-240.034157,0.00019998,2]
[360689819,1746929473261,-1374.67,0.00019998,2]
[360689820,1746929473270,-1374.67,0.00019998,2]
[360689821,1746929473279,-1374.67,0.00019998,2]
[360689822,1746929473288,-240.034157,0.00019998,2]
[360689823,1746929473298,-495.77,0.00019998,2]
[360689824,1746929473306,-495.77,0.00019998,2]
[360689825,1746929473315,-495.77,0.00019998,2]
[360689826,1746929473325,-554.07,0.00019998,2]
[360689827,1746929473334,-554.07,0.00019998,2]
[360689828,1746929473343,-554.07,0.00019998,2]
[360689829,1746929473353,-400.0,0.00019998,2]
[360689830,1746929473362,-162.05467956,0.00019998,2]
[360689831,1746929473371,-400.0,0.00019998,2]
[360689832,1746929473380,-400.0,0.00019998,2]
[360689833,1746929473390,-507.5299535,0.00019998,2]
[360689834,1746929473399,-512.94,0.00019998,2]
[360689835,1746929473408,-512.94,0.00019998,2]
[360689836,1746929473417,-512.94,0.00019998,2]
[360689837,1746929473426,-400.0,0.00019998,2]
[360689838,1746929473436,-202.9053556,0.00019998,2]
[360689839,1746929473445,-499.54,0.00019998,2]
[360689840,1746929473455,-499.54,0.00019998,2]
[360689841,1746929473464,-499.54,0.00019998,2]
[360689842,1746929473474,-400.0,0.00019998,2]
[360689843,1746929473483,-400.0,0.00019998,2]
[360689844,1746929473497,-1215.92,0.00019998,2]
[360689845,1746929473506,-514.00401913,0.00019998,2]
[360689846,1746929473515,-1215.92,0.00019998,2]
[360689847,1746929473523,-1215.92,0.00019998,2]
[360689848,1746929473534,-400.0,0.00019998,2]
[360689849,1746929473543,-400.0,0.00019998,2]
[360689850,1746929473552,-400.0,0.00019998,2]
[360689851,1746929473562,-400.0,0.00019998,2]
[360689852,1746929473572,-400.0,0.00019998,2]
[360689853,1746929473581,-400.0,0.00019998,2]
[360689854,1746929473590,-463.02360705,0.00019998,2]
[360689855,1746929473599,-151.0,0.00019998,2]
[360689856,1746929473608,-400.0,0.00019998,2]
[360689857,1746929473617,-400.0,0.00019998,2]
[360689858,1746929473626,-400.0,0.00019998,2]
[360689859,1746929473635,-400.0,0.00019998,2]
[360689860,1746929473645,-521.04172429,0.00019998,2]
[360689861,1746929473665,-409.24827571,0.00019998,2]
[360689862,1746929473674,-590.42692429,0.00019998,2]
[360689863,1746929473759,-400.0,0.00019885,2]
[360689864,1746929473769,-400.0,0.00019885,2]
[360689865,1746929473778,-200.0,0.00019998,2]
[360689866,1746929473789,-139.86307571,0.00019998,2]
[360689867,1746929473799,-930.29,0.00019998,2]
[360689868,1746929473808,-4129.84692429,0.00019998,2]
[360689869,1746929473819,-507.91,0.00019998,2]
[360689870,1746929473830,-10412.88611822,0.00019998,2]
[360689871,1746929473843,-6207.76257819,0.00019998,2]
[360689872,1746929473855,-1020.3943793,0.00019998,2]
[360689873,1746929473864,-10420.7384207,0.00019998,2]
[360689874,1746929473875,-11858.0615793,0.00019998,2]
[360689875,1746929473883,-9109.9448907,0.00019998,2]
[360689876,1746929473895,-279.74417078,0.00019998,2]
[360689877,1746929473905,-1849.10000001,0.00019998,2]
[360689879,1746929545731,4999.99999702,0.00012,2]
[360689880,1746929608047,521.809538,0.00030137,120]
[360689881,1746929957112,253.87,0.00013699,2]
[360689882,1746930061354,863.46,0.00016821,2]
[360689885,1746930235020,1000.0,0.00030136,120]
[360689886,1746930337701,4236.75840257,9e-05,2]
[360689887,1746930368333,785.39436636,8e-05,2]
[360689888,1746930375063,250.0,0.00017,2]
[360689889,1746930434118,-765.514893,0.00018491,2]
[360689890,1746930434140,-156.67798247,0.00018581,2]
[360689891,1746930434161,-216.48297896,0.00018585,2]
[360689914,1746930631999,-1911.7034,0.00019999,7]
[360689920,1746930632188,-467.71764659,0.00018576,2]
[360689925,1746930632347,-152.00235341,0.00018576,2]
[360689926,1746930632356,-33.51702104,0.00018585,2]
[360689927,1746930632365,-3087.4,0.0001859,2]
[360689928,1746930632375,-250.0,0.00018604,2]
[360689929,1746930632385,-751.33129649,0.00018604,2]
[360689930,1746930632394,-267.49,0.00018638,2]
[360689931,1746930632404,-502.76663717,0.00018659,2]
[360689932,1746930632415,-502.76663716,0.00018659,2]
[360689933,1746930632424,-174.62,0.0001868,2]
[360689934,1746930632433,-169.58,0.00018708,2]
[360689935,1746930632443,-192.07,0.00018736,2]
[360689936,1746930632453,-179.41,0.00018744,2]
[360689937,1746930632462,-151.0,0.00018748,2]
[360689938,1746930632471,-1200.0,0.00018757,2]
[360689939,1746930632481,-300.0,0.00018758,2]
[360689940,1746930632490,-1751.04605473,0.00018759,2]
[360689941,1746930632516,-933.23839796,0.00018759,2]
[360689942,1746930632564,-1120.72009883,0.00018759,2]
[360689943,1746930632575,-3873.46704025,0.00018759,2]
[360689944,1746930632620,-16221.52840823,0.00018759,2]
[360689945,1746930632630,-200.0,0.00018904,2]
[360689946,1746930632639,-200.0,0.00018913,2]
[360689947,1746930632648,-1125.6,0.00018922,2]
[360689948,1746930632658,-1000.0,0.00018981,2]
[360689949,1746930632668,-207.4,0.00018995,2]
[360689950,1746930632677,-300.0,0.00019,2]
[360689951,1746930632686,-363.6,0.00019,2]
[360689952,1746930632696,-181.23025143,0.00019014,2]
[360689953,1746930632705,-181.23025143,0.00019068,2]
[360689954,1746930632715,-863.46,0.00019085,2]
[360689955,1746930632724,-181.23025143,0.00019151,2]
[360689956,1746930632734,-850.0,0.00019199,2]
[360689957,1746930632743,-452.36,0.000192,2]
[360689958,1746930632753,-162.5,0.000192,2]
[360689959,1746930632762,-352.66,0.000192,2]
[360689960,1746930632771,-457.06,0.000192,2]
[360689961,1746930632780,-304.46,0.000192,2]
[360689962,1746930632789,-150.0,0.000192,2]
[360689963,1746930632799,-229.19,0.000192,2]
[360689964,1746930632808,-1156.1,0.000192,2]
[360689965,1746930632817,-803.31,0.000192,2]
[360689966,1746930632826,-304.36,0.000192,2]
[360689967,1746930632835,-150.06,0.000192,2]
[360689968,1746930632845,-230.3,0.000192,2]
[360689969,1746930632854,-181.23025143,0.00019233,2]
[360689970,1746930632864,-164.9,0.00019311,2]
[360689972,1746930632873,-181.23025143,0.00019315,2]
[360689973,1746930632883,-181.23025143,0.0001937,2]
[360689974,1746930632892,-181.23025143,0.00019452,2]
[360689975,1746930632900,-311.26,0.00019452,2]
[360689976,1746930632912,-507.3684152,0.00019464,2]
[360689977,1746930632921,-181.23025143,0.00019534,2]
[360689978,1746930632930,-181.23025143,0.00019616,2]
[360689979,1746930632942,-1380.98131943,0.00019621,2]
[360689980,1746930632951,-156.67798247,0.00019687,2]
[360689981,1746930632961,-270.5062,0.00019687,2]
[360689982,1746930632971,-1121.8101,0.00019687,2]
[360689983,1746930632980,-276.9338,0.00019688,2]
[360689984,1746930632990,-485.4456,0.00019688,2]
[360689985,1746930632999,-9979.193,0.00019688,2]
[360689986,1746930633008,-6314.167,0.00019688,2]
[360689987,1746930633018,-389.25646414,0.00019688,2]
[360689988,1746930633027,-529.8824,0.0001969,2]
[360689989,1746930633037,-181.23025143,0.00019699,2]
[360689990,1746930633047,-759.71242386,0.000197,2]
[360689991,1746930633056,-1000.0,0.000197,2]
[360689992,1746930633066,-31126.46369518,0.000197,2]
[360689993,1746930633076,-389.2564641,0.00019712,2]
[360689994,1746930633086,-389.2564641,0.00019735,2]
[360689995,1746930633095,-199.20496004,0.00019751,2]
[360689996,1746930633105,-181.23025143,0.00019753,2]
[360689997,1746930633114,-389.2564641,0.00019759,2]
[360689998,1746930633124,-2500.0,0.00019773,2]
[360689999,1746930633133,-157.59,0.00019778,2]
[360690000,1746930633142,-1033.0225286,0.00019779,2]
[360690001,1746930633152,-389.2564641,0.00019782,2]
[360690002,1746930633165,-1000.0,0.00019782,2]
[360690003,1746930633175,-483.45,0.00019785,2]
[360690004,1746930633184,-388.95,0.00019787,2]
[360690005,1746930633194,-1309.26166642,0.00019787,2]
[360690006,1746930633204,-22545.52779258,0.00019787,2]
[360690009,1746930638177,-273.80146763,0.00019783,2]
[360690010,1746930638188,-60023.33700742,0.00019787,2]
[360690011,1746930638199,-508.1778,0.00019787,2]
[360690012,1746930638210,-2691.66644008,0.00019788,2]
[360690020,1746930639083,-24263.40135992,0.00019788,2]
[360690021,1746930639094,-178.436,0.0001979,2]
[360690022,1746930639104,-1483.0895,0.0001979,2]
[360690023,1746930639115,-1309.26166641,0.000198,2]
[360690024,1746930639126,-157.59,0.00019803,2]
[360690025,1746930639137,-389.2564641,0.00019806,2]
[360690026,1746930639148,-1309.26166641,0.00019812,2]
[360690027,1746930639160,-1309.26166641,0.00019825,2]
[360690028,1746930639172,-389.2564641,0.00019829,2]
[360690029,1746930639183,-181.23025143,0.00019836,2]
[360690030,1746930639193,-1309.26166641,0.00019837,2]
[360690031,1746930639204,-1309.26166641,0.0001985,2]
[360690032,1746930639215,-389.2564641,0.00019853,2]
[360690033,1746930639226,-157.59,0.00019862,2]
[360690034,1746930639237,-663.74,0.00019862,2]
[360690035,1746930639247,-1309.26166641,0.00019862,2]
[360690036,1746930639258,-177.46203964,0.00019863,2]
[360690037,1746930639269,-157.59,0.00019864,2]
[360690038,1746930639280,-468.64603164,0.00019871,2]
[360690039,1746930639291,-400.0,0.00019871,2]
[360690040,1746930639302,-400.0,0.00019871,2]
[360690041,1746930639313,-400.0,0.00019871,2]
[360690042,1746930639324,-400.0,0.00019871,2]
[360690043,1746930639337,-400.0,0.00019871,2]
[360690044,1746930639347,-500.0,0.00019872,2]
[360690045,1746930639358,-500.0,0.00019872,2]
[360690046,1746930639369,-500.0,0.00019872,2]
[360690047,1746930639379,-500.0,0.00019872,2]
[360690048,1746930639390,-500.0,0.00019872,2]
[360690049,1746930639401,-500.0,0.00019872,2]
[360690050,1746930639411,-500.0,0.00019872,2]
[360690051,1746930639424,-646.92123686,0.00019872,2]
[360690052,1746930639435,-500.0,0.00019872,2]
[360690053,1746930639445,-500.0,0.00019872,2]
[360690054,1746930639456,-500.0,0.00019872,2]
[360690055,1746930639466,-500.0,0.00019872,2]
[360690056,1746930639477,-500.0,0.00019872,2]
[360690057,1746930639487,-500.0,0.00019872,2]
[360690058,1746930639498,-500.0,0.00019872,2]
[360690059,1746930639509,-500.0,0.00019872,2]
[360690060,1746930639520,-148.17622411,0.00019872,2]
[360690064,1746930640452,-400.0,0.00019871,2]
[360690065,1746930640463,-400.0,0.00019871,2]
[360690066,1746930640472,-351.82377589,0.00019872,2]
[360690067,1746930640482,-500.0,0.00019872,2]
[360690070,1746930640754,-500.0,0.00019872,2]
[360690071,1746930640771,-500.0,0.00019872,2]
[360690072,1746930640790,-500.0,0.00019872,2]
[360690073,1746930640800,-500.0,0.00019872,2]
[360690074,1746930640810,-500.0,0.00019872,2]
[360690075,1746930640819,-500.0,0.00019872,2]
[360690076,1746930640828,-500.0,0.00019872,2]
[360690077,1746930640837,-500.0,0.00019872,2]
[360690078,1746930640847,-500.0,0.00019872,2]
[360690079,1746930640856,-500.0,0.00019872,2]
[360690080,1746930640867,-500.0,0.00019872,2]
[360690081,1746930640877,-500.0,0.00019872,2]
[360690082,1746930640886,-500.0,0.00019872,2]
[360690083,1746930640896,-500.0,0.00019872,2]
[360690084,1746930640906,-500.0,0.00019872,2]
[360690085,1746930640915,-500.0,0.00019872,2]
[360690086,1746930640926,-500.0,0.00019872,2]
[360690087,1746930640936,-545.69876761,0.00019872,2]
[360690088,1746930640947,-500.0,0.00019872,2]
[360690089,1746930640957,-500.0,0.00019872,2]
[360690090,1746930640966,-500.0,0.00019872,2]
[360690091,1746930640975,-500.0,0.00019872,2]
[360690092,1746930640984,-500.0,0.00019872,2]
[360690093,1746930640993,-500.0,0.00019872,2]
[360690094,1746930641003,-500.0,0.00019872,2]
[360690095,1746930641013,-600.0,0.00019872,2]
[360690096,1746930641022,-157.59,0.00019872,2]
[360690097,1746930641031,-500.0,0.00019873,2]
[360690098,1746930641040,-157.59,0.00019873,2]
[360690099,1746930641050,-157.59,0.00019873,2]
[360690100,1746930641059,-12500.0,0.00019874,2]
[360690101,1746930641068,-157.59,0.00019874,2]
[360690102,1746930641077,-157.59,0.00019874,2]
[360690103,1746930641087,-157.59,0.00019874,2]
[360690104,1746930641098,-1309.26166641,0.00019875,2]
[360690105,1746930641109,-177.46203964,0.00019875,2]
[360690106,1746930641119,-389.2564641,0.00019876,2]
[360690107,1746930641129,-349.47088555,0.00019882,2]
[360690108,1746930641167,-50.52911445,0.00019882,2]
[360690109,1746930641177,-400.0,0.00019882,2]
[360690110,1746930641187,-400.0,0.00019882,2]
[360690111,1746930641198,-400.0,0.00019882,2]
[360690112,1746930641207,-400.0,0.00019882,2]
[360690113,1746930641216,-617.24,0.00019882,2]
[360690114,1746930641226,-281.28977791,0.00019882,2]
[360690115,1746930641237,-118.71022209,0.00019882,2]
[360690116,1746930641246,-400.0,0.00019882,2]
[360690117,1746930641255,-627.91,0.00019882,2]
[360690118,1746930641264,-400.0,0.00019882,2]
[360690119,1746930641274,-400.0,0.00019882,2]
[360690120,1746930641283,-597.0,0.00019882,2]
[360690121,1746930641292,-400.0,0.00019882,2]
[360690122,1746930641303,-401.34207986,0.00019882,2]
[360690123,1746930641312,-400.0,0.00019882,2]
[360690124,1746930641322,-400.0,0.00019882,2]
[360690125,1746930641332,-400.0,0.00019882,2]
[360690126,1746930641341,-400.0,0.00019882,2]
[360690127,1746930641350,-400.0,0.00019882,2]
[360690128,1746930641359,-400.0,0.00019882,2]
[360690129,1746930641369,-2778.6,0.00019882,2]
[360690130,1746930641378,-604.98,0.00019882,2]
[360690131,1746930641387,-400.0,0.00019882,2]
[360690132,1746930641397,-400.0,0.00019882,2]
[360690133,1746930641406,-402.1496246,0.00019882,2]
[360690134,1746930641419,-502.77933829,0.00019882,2]
[360690135,1746930641428,-401.0442873,0.00019882,2]
[360690136,1746930641438,-400.0,0.00019882,2]
[360690137,1746930641447,-402.79514753,0.00019882,2]
[360690138,1746930641457,-566.4,0.00019882,2]
[360690139,1746930641467,-400.0,0.00019882,2]
[360690140,1746930641476,-400.0,0.00019882,2]
[360690141,1746930641486,-400.0,0.00019882,2]
[360690142,1746930641495,-400.0,0.00019882,2]
[360690143,1746930641505,-727.9,0.00019882,2]
[360690144,1746930641514,-400.0,0.00019882,2]
[360690145,1746930641524,-400.0,0.00019882,2]
[360690146,1746930641533,-184.66562441,0.00019882,2]
[360690147,1746930641543,-400.0,0.00019882,2]
[360690148,1746930641553,-400.0,0.00019882,2]
[360690149,1746930641563,-400.0,0.00019882,2]
[360690150,1746930641573,-404.26833437,0.00019882,2]
[360690151,1746930641583,-400.0,0.00019882,2]
[360690152,1746930641592,-400.0,0.00019882,2]
[360690153,1746930641602,-400.0,0.00019882,2]
[360690154,1746930641612,-400.0,0.00019882,2]
[360690155,1746930641621,-400.0,0.00019882,2]
[360690156,1746930641631,-400.0,0.00019882,2]
[360690157,1746930641640,-400.0,0.00019882,2]
[360690158,1746930641650,-461.29285508,0.00019882,2]
[360690159,1746930641659,-400.0,0.00019882,2]
[360690160,1746930641671,-427.06653652,0.00019882,2]
[360690161,1746930641680,-150.648152,0.00019882,2]
[360690162,1746930641689,-414.62912473,0.00019882,2]
[360690163,1746930641699,-400.0,0.00019882,2]
[360690164,1746930641709,-400.0,0.00019882,2]
[360690165,1746930641719,-400.0,0.00019882,2]
[360690166,1746930641728,-511.87235503,0.00019882,2]
[360690167,1746930641737,-12500.0,0.00019882,2]
[360690168,1746930641747,-400.0,0.00019883,2]
[360690169,1746930641757,-400.0,0.00019883,2]
[360690170,1746930641766,-400.0,0.00019883,2]
[360690171,1746930641776,-422.11230313,0.00019883,2]
[360690172,1746930641785,-400.0,0.00019883,2]
[360690173,1746930641795,-400.0,0.00019883,2]
[360690174,1746930641805,-400.0,0.00019883,2]
[360690175,1746930641814,-400.0,0.00019883,2]
[360690176,1746930641824,-400.0,0.00019883,2]
[360690177,1746930641833,-400.0,0.00019883,2]
[360690178,1746930641843,-400.0,0.00019883,2]
[360690179,1746930641852,-322.78981293,0.00019883,2]
[360690180,1746930641861,-374.15985722,0.00019883,2]
[360690181,1746930641874,-400.0,0.00019883,2]
[360690182,1746930641884,-400.0,0.00019883,2]
[360690183,1746930641893,-215.4102064,0.00019883,2]
[360690184,1746930641909,-400.0,0.00019883,2]
[360690185,1746930641924,-400.0,0.00019883,2]
[360690186,1746930641934,-246.81760356,0.00019883,2]
[360690187,1746930641944,-400.0,0.00019883,2]
[360690188,1746930641955,-400.0,0.00019883,2]
[360690189,1746930641965,-400.0,0.00019883,2]
[360690190,1746930641974,-262.13764492,0.00019883,2]
[360690191,1746930641984,-400.0,0.00019883,2]
[360690192,1746930641994,-400.0,0.00019883,2]
[360690193,1746930642003,-200.0,0.00019883,2]
[360690194,1746930642013,-400.0,0.00019883,2]
[360690195,1746930642025,-400.0,0.00019883,2]
[360690196,1746930642034,-521.45491732,0.00019883,2]
[360690197,1746930642044,-400.99487975,0.00019883,2]
[360690198,1746930642054,-402.67704851,0.00019883,2]
[360690199,1746930642064,-400.0,0.00019883,2]
[360690200,1746930642075,-402.002299,0.00019883,2]
[360690201,1746930642085,-402.816649,0.00019883,2]
[360690202,1746930642096,-400.47490612,0.00019883,2]
[360690203,1746930642106,-399.47027958,0.00019883,2]
[360690204,1746930642115,-401.46936454,0.00019883,2]
[360690205,1746930642125,-403.18767161,0.00019883,2]
[360690206,1746930642135,-402.95707363,0.00019883,2]
[360690207,1746930642144,-400.0,0.00019883,2]
[360690208,1746930642154,-400.0,0.00019883,2]
[360690209,1746930642164,-439.94,0.00019883,2]
[360690210,1746930642176,-400.0,0.00019883,2]
[360690211,1746930642186,-400.0,0.00019883,2]
[360690212,1746930642196,-400.0,0.00019883,2]
[360690213,1746930642207,-344.16738452,0.00019883,2]
[360690214,1746930642218,-400.0,0.00019883,2]
[360690215,1746930642228,-402.43761021,0.00019883,2]
[360690216,1746930642239,-400.0,0.00019883,2]
[360690217,1746930642248,-400.0,0.00019883,2]
[360690218,1746930642258,-400.0,0.00019883,2]
[360690219,1746930642268,-400.0,0.00019883,2]
[360690220,1746930642279,-400.0,0.00019883,2]
[360690221,1746930642288,-414.44122591,0.00019883,2]
[360690222,1746930642298,-400.0,0.00019883,2]
[360690223,1746930642308,-400.0,0.00019883,2]
[360690224,1746930642318,-400.0,0.00019883,2]
[360690225,1746930642328,-400.0,0.00019883,2]
[360690226,1746930642338,-400.0,0.00019883,2]
[360690227,1746930642348,-400.0,0.00019883,2]
[360690228,1746930642358,-400.0,0.00019883,2]
[360690229,1746930642368,-400.32,0.00019883,2]
[360690230,1746930642379,-400.0,0.00019883,2]
[360690231,1746930642389,-400.0,0.00019883,2]
[360690232,1746930642399,-400.0,0.00019883,2]
[360690233,1746930642410,-495.1846137,0.00019883,2]
[360690234,1746930642422,-323.94728056,0.00019883,2]
[360690235,1746930642432,-400.0,0.00019883,2]
[360690236,1746930642442,-508.19,0.00019883,2]
[360690237,1746930642452,-12985.2,0.00019883,2]
[360690238,1746930642461,-400.0,0.00019883,2]
[360690239,1746930642471,-400.0,0.00019883,2]
[360690240,1746930642484,-400.0,0.00019883,2]
[360690241,1746930642494,-400.0,0.00019883,2]
[360690242,1746930642504,-400.0,0.00019883,2]
[360690243,1746930642513,-400.0,0.00019883,2]
[360690244,1746930642524,-400.0,0.00019883,2]
[360690245,1746930642533,-400.0,0.00019883,2]
[360690246,1746930642543,-433.54977012,0.00019883,2]
[360690247,1746930642553,-400.0,0.00019883,2]
[360690248,1746930642563,-400.0,0.00019883,2]
[360690249,1746930642574,-480.78134458,0.00019883,2]
[360690250,1746930642583,-400.0,0.00019883,2]
[360690251,1746930642592,-493.24795701,0.00019883,2]
[360690252,1746930642602,-400.0,0.00019883,2]
[360690253,1746930642611,-400.0,0.00019883,2]
[360690254,1746930642621,-400.0,0.00019883,2]
[360690255,1746930642630,-400.0,0.00019883,2]
[360690256,1746930642639,-1118.4,0.00019883,2]
[360690257,1746930642649,-400.0,0.00019883,2]
[360690258,1746930642659,-1312.85,0.00019883,2]
[360690259,1746930642669,-400.0,0.00019883,2]
[360690260,1746930642678,-400.0,0.00019883,2]
[360690261,1746930642688,-620.03,0.00019883,2]
[360690262,1746930642697,-1130.75,0.00019883,2]
[360690263,1746930642707,-400.0,0.00019884,2]
[360690264,1746930642716,-911.79,0.00019884,2]
[360690265,1746930642725,-400.0,0.00019884,2]
[360690266,1746930642735,-306.62423397,0.00019884,2]
[360690267,1746930642744,-400.0,0.00019884,2]
[360690268,1746930642754,-400.0,0.00019884,2]
[360690269,1746930642764,-400.0,0.00019884,2]
[360690270,1746930642773,-400.0,0.00019884,2]
[360690271,1746930642783,-429.87,0.00019884,2]
[360690272,1746930642792,-400.0,0.00019884,2]
[360690273,1746930642802,-400.0,0.00019884,2]
[360690274,1746930642811,-400.0,0.00019884,2]
[360690275,1746930642821,-400.0,0.00019884,2]
[360690276,1746930642830,-400.0,0.00019884,2]
[360690277,1746930642840,-400.0,0.00019884,2]
[360690278,1746930642850,-400.0,0.00019884,2]
[360690279,1746930642860,-400.0,0.00019884,2]
[360690280,1746930642871,-400.0,0.00019884,2]
[360690281,1746930642881,-400.0,0.00019884,2]
[360690282,1746930642891,-429.87757787,0.00019884,2]
[360690283,1746930642900,-400.0,0.00019884,2]
[360690284,1746930642910,-488.8970178,0.00019884,2]
[360690285,1746930642921,-401.61234276,0.00019884,2]
[360690286,1746930642930,-400.0,0.00019884,2]
[360690287,1746930642940,-400.0,0.00019884,2]
[360690288,1746930642950,-400.0,0.00019884,2]
[360690289,1746930642959,-400.0,0.00019884,2]
[360690290,1746930642969,-400.0,0.00019884,2]
[360690292,1746930642978,-400.0,0.00019884,2]
[360690293,1746930642988,-400.0,0.00019884,2]
[360690294,1746930642998,-400.0,0.00019884,2]
[360690295,1746930643008,-400.0,0.00019884,2]
[360690296,1746930643017,-349.28574296,0.00019884,2]
[360690297,1746930643026,-400.0,0.00019884,2]
[360690298,1746930643036,-400.0,0.00019884,2]
[360690299,1746930643049,-400.0,0.00019884,2]
[360690300,1746930643058,-493.35506787,0.00019884,2]
[360690301,1746930643067,-400.0,0.00019884,2]
[360690302,1746930643076,-400.0,0.00019884,2]
[360690303,1746930643086,-400.0,0.00019884,2]
[360690304,1746930643095,-400.0,0.00019884,2]
[360690305,1746930643105,-484.47906853,0.00019884,2]
[360690306,1746930643114,-400.0,0.00019884,2]
[360690307,1746930643123,-400.0,0.00019884,2]
[360690308,1746930643133,-407.81973218,0.00019884,2]
[360690309,1746930643142,-428.74276062,0.00019884,2]
[360690310,1746930643152,-400.0,0.00019884,2]
[360690311,1746930643161,-400.0,0.00019884,2]
[360690312,1746930643172,-400.0,0.00019884,2]
[360690313,1746930643181,-400.0,0.00019884,2]
[360690314,1746930643191,-400.0,0.00019884,2]
[360690315,1746930643200,-400.0,0.00019884,2]
[360690316,1746930643210,-400.0,0.00019884,2]
[360690317,1746930643220,-539.05727827,0.00019884,2]
[360690318,1746930643231,-400.0,0.00019884,2]
[360690319,1746930643242,-400.0,0.00019884,2]
[360690320,1746930643252,-400.0,0.00019884,2]
[360690321,1746930643261,-400.0,0.00019884,2]
[360690322,1746930643271,-400.0,0.00019884,2]
[360690323,1746930643280,-400.0,0.00019884,2]
[360690324,1746930643289,-400.0,0.00019884,2]